bitfinex-derivatives/quotes_BTCF0:USTF0_20250528
["timestamp","ask_amount","ask_price","bid_price","bid_amount"]
[1748445265047,0.71140515,107250.0,107240.0,0.0648326]
[1748445265247,0.71140515,107250.0,107240.0,0.06583261]
[1748445265248,1.01050515,107250.0,107240.0,0.06583261]
[1748445265451,1.06050515,107250.0,107240.0,0.06583261]
[1748445265750,1.06050515,107250.0,107240.0,0.06091392]
[1748445265939,1.06150515,107250.0,107240.0,0.06291278]
[1748445266350,1.06150515,107250.0,107240.0,0.03532]
[1748445266548,1.24150515,107250.0,107240.0,0.06292975]
[1748445267051,1.24150515,107250.0,107240.0,0.06292979]
[1748445267549,1.34150515,107250.0,107240.0,0.0629294]
[1748445268554,1.39891709,107250.0,107240.0,0.0629294]
[1748445268852,1.39891709,107250.0,107240.0,0.05993088]
[1748445269349,1.39887986,107250.0,107240.0,0.01870862]
[1748445269749,1.39887986,107250.0,107240.0,0.01882862]
[1748445270545,1.39887986,107250.0,107240.0,0.01469417]
[1748445270748,1.39887986,107250.0,107240.0,0.01469423]
[1748445271152,1.39887986,107250.0,107240.0,0.00012]
[1748445271355,1.39887986,107250.0,107240.0,0.01469423]
[1748445271853,1.35597304,107250.0,107240.0,0.01469458]
[1748445272356,1.2985611,107250.0,107240.0,0.01469465]
[1748445272554,1.8782011,107250.0,107240.0,0.01457465]
[1748445272751,1.8782011,107250.0,107240.0,0.01469465]
[1748445272944,1.8782011,107250.0,107240.0,0.04579465]
[1748445272945,1.92112347,107250.0,107240.0,0.04579465]
[1748445273150,1.34148347,107250.0,107240.0,0.04579465]
[1748445273352,1.7280411,107250.0,107240.0,0.0457938]
[1748445273855,1.7280411,107250.0,107240.0,0.04579379]
[1748445274253,1.77098891,107250.0,107240.0,0.04579341]
[1748445274647,1.77098891,107250.0,107240.0,0.03889295]
[1748445275151,1.77090891,107250.0,107240.0,0.08622961]
[1748445275352,1.77090891,107250.0,107240.0,0.06410361]
[1748445275556,1.77090891,107250.0,107240.0,0.07867703]
[1748445275753,1.19150891,107250.0,107240.0,0.06410361]
[1748445275972,1.77058891,107250.0,107240.0,0.06410361]
[1748445276160,1.77058891,107250.0,107240.0,0.07263041]
[1748445276460,1.77058891,107250.0,107240.0,0.0452752]
[1748445276756,1.82058891,107250.0,107240.0,0.01457342]
[1748445276957,1.82058891,107250.0,107240.0,0.01469342]
[1748445276958,1.86375901,107250.0,107240.0,0.01469342]
[1748445277148,1.86375901,107250.0,107240.0,0.01469466]
[1748445277149,1.92117095,107250.0,107240.0,0.01469466]
[1748445277345,1.28467901,107250.0,107240.0,0.01469466]
[1748445277550,0.1864334,107240.0,107230.0,0.00292952]
[1748445277750,0.79619896,107240.0,107230.0,0.00292952]
[1748445277949,0.79619896,107240.0,107230.0,0.03432952]
[1748445277950,0.75322043,107240.0,107230.0,0.03432952]
[1748445278149,0.71023962,107240.0,107230.0,0.03444952]
[1748445278348,0.75321694,107240.0,107230.0,0.03444952]
[1748445278960,0.79619896,107240.0,107230.0,0.03444952]
[1748445279253,0.79819896,107240.0,107230.0,0.03444952]
[1748445279848,0.84947896,107240.0,107230.0,0.03444952]
[1748445280447,0.84947896,107240.0,107230.0,0.00304952]
[1748445280854,0.84947896,107240.0,107230.0,0.03324952]
[1748445281359,0.84947896,107240.0,107230.0,0.04362861]
[1748445281950,1.09677162,107240.0,107230.0,0.01342861]
[1748445282156,0.1864864,107210.0,107200.0,0.163]
[1748445282457,0.5472864,107210.0,107200.0,0.3167038]
[1748445282655,0.5472864,107210.0,107200.0,0.3168238]
[1748445283547,0.5612764,107210.0,107200.0,0.3168238]
[1748445283747,0.5612764,107210.0,107200.0,0.37606281]
[1748445283748,0.55218087,107210.0,107200.0,0.37606281]
[1748445283951,0.36569447,107210.0,107200.0,0.37606281]
[1748445284151,0.55218087,107210.0,107200.0,0.37606281]
[1748445284456,0.55318087,107210.0,107200.0,0.37606281]
[1748445284650,0.36769447,107210.0,107200.0,0.37606281]
[1748445284955,0.01599,107210.0,107200.0,1.02174989]
[1748445285160,0.2024764,107210.0,107200.0,0.22444609]
[1748445285361,0.2024764,107210.0,107200.0,0.41082989]
[1748445285362,0.37679,107210.0,107200.0,0.41082989]
[1748445285659,0.01599,107210.0,107200.0,0.77162989]
[1748445285855,0.01599,107210.0,107200.0,0.41082989]
[1748445286257,0.01599,107210.0,107200.0,0.4632569]
[1748445286560,0.01599,107210.0,107200.0,0.8239369]
[1748445286756,0.01599,107210.0,107200.0,1.10809789]
[1748445287359,0.01599,107210.0,107200.0,1.16734046]
[1748445288260,0.01599,107210.0,107200.0,0.88245338]
[1748445288649,0.01599,107210.0,107200.0,1.13245338]
[1748445288856,0.01599,107210.0,107200.0,1.0209038]
[1748445289563,0.01599,107210.0,107200.0,1.17639727]
[1748445289953,0.01599,107210.0,107200.0,1.10531702]
[1748445290159,0.5632764,107210.0,107200.0,0.40123793]
[1748445290356,0.5632764,107210.0,107200.0,0.45358343]
[1748445290552,0.5632764,107210.0,107200.0,0.43621626]
[1748445290855,0.01599,107210.0,107200.0,0.43621764]
[1748445291060,0.01599,107210.0,107200.0,0.69219974]
[1748445291259,0.2024761,107210.0,107200.0,0.6776238]
[1748445291459,0.5632761,107210.0,107200.0,0.19266262]
[1748445291661,0.5632761,107210.0,107200.0,0.40247816]
[1748445291662,0.53792518,107210.0,107200.0,0.40247816]
[1748445291954,0.53792518,107210.0,107200.0,0.43734929]
[1748445291955,0.3628,107210.0,107200.0,0.43734929]
[1748445292160,0.5482861,107210.0,107200.0,0.43734929]
[1748445292357,0.5492861,107210.0,107200.0,0.36638904]
[1748445292760,0.5492861,107210.0,107200.0,0.36639052]
[1748445293550,0.4141,107210.0,107200.0,0.36639052]
[1748445293858,0.59149073,107210.0,107200.0,0.36639052]
[1748445294159,0.62149073,107210.0,107200.0,0.3793628]
[1748445294349,0.62149073,107210.0,107200.0,0.22188967]
[1748445294551,0.61542578,107210.0,107200.0,0.41476315]
[1748445294757,0.61542578,107210.0,107200.0,0.41274911]
[1748445294953,0.42893958,107210.0,107200.0,0.42001463]
[1748445295163,0.42893958,107210.0,107200.0,0.43319039]
[1748445295464,0.42893958,107210.0,107200.0,0.41509659]
[1748445295465,0.61542568,107210.0,107200.0,0.41509659]
[1748445295666,1.07522578,107210.0,107200.0,0.12780196]
[1748445295963,0.73383294,107210.0,107200.0,0.12768176]
[1748445296155,0.73383294,107210.0,107200.0,0.19190176]
[1748445296156,1.19351294,107210.0,107200.0,0.19190176]
[1748445296662,1.30995294,107210.0,107200.0,0.19197682]
[1748445296865,1.3099368,107210.0,107200.0,0.19197682]
[1748445297065,1.3099368,107210.0,107200.0,0.1919777]
[1748445297261,1.3099368,107210.0,107200.0,0.19196883]
[1748445297566,1.26694578,107210.0,107200.0,0.19196883]
[1748445297763,1.3099368,107210.0,107200.0,0.19196874]
[1748445298357,1.26694578,107210.0,107200.0,0.19196874]
[1748445298662,1.3099368,107210.0,107200.0,0.19198317]
[1748445298859,1.36724302,107210.0,107200.0,0.19198317]
[1748445299168,1.36724302,107210.0,107200.0,0.13292]
[1748445299462,1.574252,107210.0,107200.0,0.0811447]
[1748445299763,1.95052302,107210.0,107200.0,0.03473427]
[1748445299961,1.95052302,107210.0,107200.0,0.03461661]
[1748445300170,0.768132,107210.0,107200.0,0.03473661]
[1748445300365,0.81108289,107210.0,107200.0,0.02140509]
[1748445300573,1.32981667,107210.0,107200.0,0.06741845]
[1748445300863,1.28686578,107210.0,107200.0,0.10006683]
[1748445301168,1.28686578,107210.0,107200.0,0.10006653]
[1748445301370,1.28686578,107210.0,107200.0,0.10006611]
[1748445301666,1.32981667,107210.0,107200.0,0.10007451]
[1748445301852,0.75377727,107210.0,107200.0,0.03445451]
[1748445302052,1.32977727,107210.0,107200.0,0.03457451]
[1748445302262,1.32977727,107210.0,107200.0,0.03463123]
[1748445302456,1.42305727,107210.0,107200.0,0.03463123]
[1748445302763,1.63036349,107210.0,107200.0,0.0214033]
[1748445303062,1.63072349,107210.0,107200.0,0.03465138]
[1748445303263,1.05436349,107210.0,107200.0,0.03465138]
[1748445303467,1.637612,107210.0,107200.0,0.03457018]
[1748445303658,1.637612,107210.0,107200.0,0.02950709]
[1748445304055,1.637612,107210.0,107200.0,0.01622164]
[1748445304256,1.72357134,107210.0,107200.0,0.02962899]
[1748445304451,1.72357134,107210.0,107200.0,0.0150838]
[1748445304751,1.72357134,107210.0,107200.0,0.01508612]
[1748445304956,0.1865034,107200.0,107190.0,0.01593539]
[1748445305151,0.80022214,107200.0,107190.0,0.04398915]
[1748445305363,0.7906034,107200.0,107190.0,0.29280985]
[1748445305660,0.7906034,107200.0,107190.0,0.1386965]
[1748445305661,0.81460962,107200.0,107190.0,0.1386965]
[1748445305864,0.46102863,107200.0,107190.0,0.3252172]
[1748445306055,0.46102863,107200.0,107190.0,0.29725609]
[1748445306251,0.45602241,107200.0,107190.0,0.34782448]
[1748445306452,0.09522241,107200.0,107190.0,0.47255054]
[1748445306660,0.09522241,107200.0,107190.0,1.17663791]
[1748445306961,1.0602033,107200.0,107190.0,0.28679142]
[1748445307259,1.0922033,107200.0,107190.0,0.20692137]
[1748445307462,1.1255033,107200.0,107190.0,0.19972235]
[1748445307663,1.0922033,107200.0,107190.0,0.18668785]
[1748445307960,1.0922033,107200.0,107190.0,0.14054346]
[1748445308154,1.1255033,107200.0,107190.0,0.14054346]
[1748445308353,1.1255033,107200.0,107190.0,0.14056787]
[1748445308549,1.1256633,107200.0,107190.0,0.14056787]
[1748445309153,1.1256633,107200.0,107190.0,0.12464425]
[1748445309557,1.1256633,107200.0,107190.0,0.12320006]
[1748445309750,1.1256633,107200.0,107190.0,0.13777893]
[1748445310157,1.1253433,107200.0,107190.0,0.13777894]
[1748445310363,1.0920433,107200.0,107190.0,0.32429964]
[1748445310565,1.0920433,107200.0,107190.0,0.32429954]
[1748445310764,1.0920433,107200.0,107190.0,0.30972076]
[1748445310963,1.0920433,107200.0,107190.0,0.14056754]
[1748445311163,1.0919633,107200.0,107190.0,0.14056754]
[1748445311465,1.0919633,107200.0,107190.0,0.32708824]
[1748445311856,0.6326033,107200.0,107190.0,0.32708757]
[1748445312054,0.6326033,107200.0,107190.0,0.29937609]
[1748445312055,1.0918433,107200.0,107190.0,0.29937609]
[1748445312262,1.0918433,107200.0,107190.0,0.3271035]
[1748445312462,1.0596833,107200.0,107190.0,0.3271035]
[1748445313163,0.4141,107200.0,107190.0,0.3271034]
[1748445313365,0.0533,107200.0,107190.0,0.83761829]
[1748445313551,0.0533,107200.0,107190.0,0.85947653]
[1748445313754,0.0533,107200.0,107190.0,0.88711749]
[1748445313963,0.0533,107200.0,107190.0,0.88711605]
[1748445314162,0.0533,107200.0,107190.0,0.85200365]
[1748445314369,0.0533,107200.0,107190.0,0.90448175]
[1748445314559,0.0533,107200.0,107190.0,0.81119375]
[1748445315157,0.0533,107200.0,107190.0,0.8111937]
[1748445315360,0.0533,107200.0,107190.0,0.4503937]
[1748445315561,0.6006033,107200.0,107190.0,0.43585088]
[1748445315867,0.4141,107200.0,107190.0,0.42293442]
[1748445316169,0.4141,107200.0,107190.0,0.45048156]
[1748445316467,0.40500421,107200.0,107190.0,0.39800348]
[1748445316665,0.04420421,107200.0,107190.0,1.09027369]
[1748445316863,0.01785113,107200.0,107190.0,1.13188608]
[1748445317174,0.01785113,107200.0,107190.0,1.13176435]
[1748445317468,0.01785113,107200.0,107190.0,1.14163282]
[1748445318063,0.20435443,107200.0,107190.0,3.09983282]
[1748445318264,0.01785113,107200.0,107190.0,3.09983282]
[1748445318661,0.01785113,107200.0,107190.0,3.09983159]
[1748445318861,0.01785113,107200.0,107190.0,3.14822777]
[1748445319263,0.01785113,107200.0,107190.0,3.07989984]
[1748445319465,0.01785113,107200.0,107190.0,3.11720931]
[1748445319770,0.01785113,107200.0,107190.0,3.04736974]
[1748445320177,0.01785113,107200.0,107190.0,3.16561239]
[1748445320365,0.01785113,107200.0,107190.0,3.09448216]
[1748445320666,0.01785113,107200.0,107190.0,3.1172086]
[1748445320986,0.01785113,107200.0,107190.0,3.11720832]
[1748445320987,3e-08,107200.0,107190.0,3.11720832]
[1748445321269,0.05705856,107220.0,107210.0,0.1864859]
[1748445321567,0.05705856,107220.0,107210.0,1.3716046]
[1748445321759,0.05705856,107220.0,107210.0,1.51460768]
[1748445321962,0.05705856,107220.0,107210.0,1.44347816]
[1748445322273,0.05705856,107220.0,107210.0,1.44347465]
[1748445322666,0.05705856,107220.0,107210.0,1.44347461]
[1748445322865,0.05705856,107220.0,107210.0,1.44447461]
[1748445322866,0.05805856,107220.0,107210.0,1.44447461]
[1748445323065,0.05905856,107220.0,107210.0,1.44647461]
[1748445323468,0.05905856,107220.0,107210.0,2.94647461]
[1748445323662,0.05905856,107220.0,107210.0,2.58567461]
[1748445323969,0.60632706,107220.0,107210.0,0.36966998]
[1748445324178,0.66872706,107220.0,107210.0,0.29865752]
[1748445324375,0.70012706,107220.0,107210.0,0.35101189]
[1748445324564,0.70012706,107220.0,107210.0,0.29878157]
[1748445325075,0.73777002,107220.0,107210.0,0.29878169]
[1748445325466,0.77541533,107220.0,107210.0,0.29878169]
[1748445325663,0.58894683,107220.0,107210.0,0.29878171]
[1748445325871,0.58894683,107220.0,107210.0,0.2842059]
[1748445326173,0.58894683,107220.0,107210.0,0.29878145]
[1748445326174,0.58194683,107220.0,107210.0,0.29878145]
[1748445326478,0.58194683,107220.0,107210.0,0.29878094]
[1748445326659,0.54430387,107220.0,107210.0,0.29878094]
[1748445327066,0.54430387,107220.0,107210.0,0.29878077]
[1748445327565,0.54430387,107220.0,107210.0,0.29878076]
[1748445328073,0.54430387,107220.0,107210.0,0.35796108]
[1748445328776,0.54430387,107220.0,107210.0,0.34338622]
[1748445329071,0.54430387,107220.0,107210.0,0.35796109]
[1748445329273,0.54430387,107220.0,107210.0,0.34338622]
[1748445329667,0.54430387,107220.0,107210.0,0.3579611]
[1748445329866,0.54430387,107220.0,107210.0,0.35796108]
[1748445330074,0.73077237,107220.0,107210.0,0.35796108]
[1748445330261,0.73077237,107220.0,107210.0,0.29878076]
[1748445330571,0.73077237,107220.0,107210.0,0.29878099]
[1748445330766,0.73077237,107220.0,107210.0,0.29878116]
[1748445330961,0.73077237,107220.0,107210.0,0.29878112]
[1748445331371,0.73077237,107220.0,107210.0,0.2842059]
[1748445331667,0.73077237,107220.0,107210.0,0.29878114]
[1748445331868,1.09844633,107220.0,107210.0,0.01769524]
[1748445332062,0.87430387,107220.0,107210.0,0.20418132]
[1748445332261,0.91452338,107220.0,107210.0,0.26908132]
[1748445332472,0.87685029,107220.0,107210.0,0.26896132]
[1748445332676,1.06331879,107220.0,107210.0,0.26908132]
[1748445333264,1.06331879,107220.0,107210.0,1.26908132]
[1748445333477,1.10099487,107220.0,107210.0,1.26908132]
[1748445334173,1.10099487,107220.0,107210.0,1.26908134]
[1748445334567,1.10099487,107220.0,107210.0,1.26908135]
[1748445334767,1.06331879,107220.0,107210.0,1.32826167]
[1748445334962,1.06331879,107220.0,107210.0,1.07687577]
[1748445335171,0.54685029,107220.0,107210.0,1.26336167]
[1748445335366,0.57685029,107220.0,107210.0,1.35676167]
[1748445335570,0.57685029,107220.0,107210.0,1.35676125]
[1748445336068,0.57685029,107220.0,107210.0,1.35676089]
[1748445336269,0.76331879,107220.0,107210.0,1.35676089]
[1748445336466,0.57685029,107220.0,107210.0,1.35676089]
[1748445336781,1.00331879,107220.0,107210.0,1.35676082]
[1748445337273,1.00331879,107220.0,107210.0,1.34218622]
[1748445337571,1.00331879,107220.0,107210.0,1.35955083]
[1748445337878,1.00331879,107220.0,107210.0,1.35962729]
[1748445338267,0.76331879,107220.0,107210.0,1.35962729]
[1748445338669,0.57685029,107220.0,107210.0,1.35962729]
[1748445339269,0.54685029,107220.0,107210.0,1.35962726]
[1748445339479,0.75685029,107220.0,107210.0,1.30037043]
[1748445339869,0.75685029,107220.0,107210.0,1.2857959]
[1748445340170,0.79455169,107220.0,107210.0,1.30037043]
[1748445340378,0.79455169,107220.0,107210.0,1.35962721]
[1748445340878,0.98102039,107220.0,107210.0,1.35962721]
[1748445341381,0.98102039,107220.0,107210.0,1.34505268]
[1748445341680,0.94331899,107220.0,107210.0,1.37138274]
[1748445342279,0.94331899,107220.0,107210.0,1.37138277]
[1748445342877,0.98103673,107220.0,107210.0,1.25442307]
[1748445343071,0.98103673,107220.0,107210.0,1.23947038]
[1748445343469,0.98103673,107220.0,107210.0,1.02048511]
[1748445343669,0.98103673,107220.0,107210.0,1.14012398]
[1748445343877,0.98103673,107220.0,107210.0,1.05325159]
[1748445343878,1.02409311,107220.0,107210.0,1.05325159]
[1748445344072,1.02409311,107220.0,107210.0,1.08080459]
[1748445344275,1.02409311,107220.0,107210.0,1.06623288]
[1748445344482,1.02409311,107220.0,107210.0,1.08068927]
[1748445344778,1.02409311,107220.0,107210.0,1.26729526]
[1748445344986,1.01499745,107220.0,107210.0,1.05337259]
[1748445345174,1.01499745,107220.0,107210.0,1.08081008]
[1748445345375,1.01499745,107220.0,107210.0,1.26729618]
[1748445345576,1.01499745,107220.0,107210.0,1.25443508]
[1748445345986,0.97194254,107220.0,107210.0,1.25443508]
[1748445346287,0.97194254,107220.0,107210.0,1.23985869]
[1748445346487,0.78547384,107220.0,107210.0,1.20697249]
[1748445346786,0.78547384,107220.0,107210.0,1.37498495]
[1748445346787,0.47625463,107220.0,107210.0,1.37498495]
[1748445346982,0.47625463,107220.0,107210.0,1.35142946]
[1748445347379,0.49625463,107220.0,107210.0,1.35142946]
[1748445347579,0.49625463,107220.0,107210.0,1.33685307]
[1748445347780,0.49625463,107220.0,107210.0,1.35142743]
[1748445347977,0.49625463,107220.0,107210.0,1.35142739]
[1748445348185,0.68625463,107220.0,107210.0,1.35142739]
[1748445348486,0.68625463,107220.0,107210.0,1.35142737]
[1748445348684,0.72396894,107220.0,107210.0,1.80686737]
[1748445348885,0.57396894,107220.0,107210.0,1.80686737]
[1748445349081,0.12086894,107220.0,107210.0,1.92374694]
[1748445349388,0.07196239,107220.0,107210.0,2.33819156]
[1748445349688,0.07196239,107220.0,107210.0,2.50526054]
[1748445349874,0.05680719,107220.0,107210.0,2.58841801]
[1748445350073,0.05680719,107220.0,107210.0,2.78966639]
[1748445350273,0.05680719,107220.0,107210.0,2.61452862]
[1748445350475,0.05680719,107220.0,107210.0,2.85567582]
[1748445350686,0.05680719,107220.0,107210.0,2.71628008]
[1748445351277,0.05680719,107220.0,107210.0,2.73009054]
[1748445351482,0.05680719,107220.0,107210.0,2.86946722]
[1748445351788,0.04587909,107220.0,107210.0,2.823454]
[1748445352088,0.04587909,107220.0,107210.0,2.8234539]
[1748445352589,0.04587909,107220.0,107210.0,2.82345283]
[1748445353187,0.04587909,107220.0,107210.0,2.72063882]
[1748445353385,0.04587909,107220.0,107210.0,2.65982644]
[1748445353574,0.04587909,107220.0,107210.0,2.74551354]
[1748445353778,0.02103899,107220.0,107210.0,2.73094256]
[1748445353985,0.02103899,107220.0,107210.0,2.74551289]
[1748445354290,0.02103899,107220.0,107210.0,2.74549606]
[1748445354486,0.02103899,107220.0,107210.0,2.74509606]
[1748445354878,0.02103899,107220.0,107210.0,2.74501642]
[1748445355284,0.02103899,107220.0,107210.0,2.67389709]
[1748445355481,0.02103899,107220.0,107210.0,2.67389724]
[1748445355685,0.02911952,107230.0,107220.0,0.1864687]
[1748445355885,0.02911952,107230.0,107220.0,0.84152546]
[1748445356185,0.02911952,107230.0,107220.0,0.72988113]
[1748445356686,0.02911952,107230.0,107220.0,0.72987898]
[1748445356878,0.02911952,107230.0,107220.0,0.78909746]
[1748445357078,0.03011952,107230.0,107220.0,0.77652696]
[1748445357281,0.00208972,107230.0,107220.0,0.85054315]
[1748445357487,2e-08,107230.0,107220.0,0.92158373]
[1748445357690,2e-08,107230.0,107220.0,2.35153952]
[1748445357885,2e-08,107230.0,107220.0,2.62383578]
[1748445358090,2e-08,107230.0,107220.0,2.552799]
[1748445358295,2e-08,107230.0,107220.0,2.55279468]
[1748445358499,2e-08,107230.0,107220.0,2.55279394]
[1748445358893,0.00013952,107240.0,107230.0,0.1864513]
[1748445358894,4e-08,107240.0,107230.0,0.1864513]
[1748445359092,4e-08,107240.0,107230.0,1.22290432]
[1748445359292,4e-08,107240.0,107230.0,1.33072426]
[1748445359492,4e-08,107240.0,107230.0,0.82118836]
[1748445359789,4e-08,107240.0,107230.0,1.44188981]
[1748445359989,4e-08,107240.0,107230.0,1.38274571]
[1748445360180,4e-08,107240.0,107230.0,1.38954836]
[1748445360181,0.00100004,107240.0,107230.0,1.38954836]
[1748445360386,4e-08,107240.0,107230.0,1.38954836]
[1748445360588,4e-08,107240.0,107230.0,1.3749796]
[1748445360782,0.00100004,107240.0,107230.0,0.76304366]
[1748445360989,0.00100004,107240.0,107230.0,1.38400364]
[1748445361184,4e-08,107240.0,107230.0,1.43130806]
[1748445361493,6e-08,107250.0,107240.0,0.186434]
[1748445361699,6e-08,107250.0,107240.0,0.72611979]
[1748445362185,6e-08,107250.0,107240.0,0.7261172]
[1748445362496,6e-08,107250.0,107240.0,0.71584499]
[1748445362790,6e-08,107250.0,107240.0,0.701278]
[1748445363186,6e-08,107250.0,107240.0,2.21153637]
[1748445363385,6e-08,107250.0,107240.0,2.22610326]
[1748445363586,6e-08,107250.0,107240.0,2.28524707]
[1748445363785,6e-08,107250.0,107240.0,2.2749887]
[1748445363994,6e-08,107250.0,107240.0,2.285241]
[1748445364291,6e-08,107250.0,107240.0,2.2260969]
[1748445364498,6e-08,107250.0,107240.0,2.33751945]
[1748445364693,6e-08,107250.0,107240.0,2.27837535]
[1748445364990,6e-08,107250.0,107240.0,0.68605286]
[1748445365192,6e-08,107250.0,107240.0,0.75004867]
[1748445365193,0.03020006,107250.0,107240.0,0.75004867]
[1748445365393,0.03020006,107250.0,107240.0,0.79730488]
[1748445365591,6e-08,107250.0,107240.0,0.75017069]
[1748445365899,6e-08,107250.0,107240.0,1.61800924]
[1748445366198,6e-08,107250.0,107240.0,1.56573075]
[1748445366397,0.07721824,107270.0,107240.0,1.93861745]
[1748445366599,0.01381824,107270.0,107260.0,0.1863993]
[1748445366898,0.3608,107280.0,107270.0,0.1863819]
[1748445367192,0.3912,107280.0,107270.0,0.30619049]
[1748445367394,0.40497348,107280.0,107270.0,0.30898003]
[1748445367900,0.40497348,107280.0,107270.0,0.3089799]
[1748445368196,0.04417348,107280.0,107270.0,0.29873765]
[1748445368498,0.01777348,107280.0,107270.0,0.67077582]
[1748445368699,0.01777348,107280.0,107270.0,0.65621062]
[1748445368892,0.004,107280.0,107270.0,0.6707708]
[1748445369198,0.004,107280.0,107270.0,0.67177076]
[1748445369199,0.0398,107280.0,107270.0,0.67177076]
[1748445369397,0.0398,107280.0,107270.0,0.67177075]
[1748445369593,0.0728,107280.0,107270.0,0.67177075]
[1748445369787,0.0698,107280.0,107270.0,0.67077075]
[1748445369993,0.0383717,107280.0,107270.0,0.66976669]
[1748445370192,1e-07,107280.0,107270.0,0.66976669]
[1748445370395,1e-07,107280.0,107270.0,0.66976691]
[1748445370598,1e-07,107280.0,107270.0,0.66976359]
[1748445370895,0.06333358,107300.0,107290.0,0.1863472]
[1748445371094,0.06333358,107300.0,107290.0,0.68593889]
[1748445371304,8e-08,107300.0,107290.0,0.77080901]
[1748445371492,8e-08,107300.0,107290.0,0.874235]
[1748445371802,0.3608,107330.0,107300.0,0.0465787]
[1748445371991,0.0301,107330.0,107320.0,0.1862951]
[1748445372297,0.0301,107330.0,107320.0,0.2110829]
[1748445372502,0.0301,107330.0,107320.0,0.27245581]
[1748445372998,0.0351,107330.0,107320.0,0.27245272]
[1748445373186,0.3608,107350.0,107320.0,0.90083762]
[1748445373391,0.3608,107350.0,107340.0,0.1862604]
[1748445373392,0.03,107350.0,107340.0,0.1862604]
[1748445373594,0.03,107350.0,107340.0,0.57221802]
[1748445373794,0.3926,107360.0,107350.0,0.186243]
[1748445373989,0.0618,107360.0,107350.0,0.24961591]
[1748445374302,0.0618,107360.0,107350.0,0.27436824]
[1748445374496,0.0618,107360.0,107350.0,0.24417121]
[1748445374798,0.0618,107360.0,107350.0,0.54741591]
[1748445374999,0.0618,107360.0,107350.0,0.62497094]
[1748445375301,0.0618,107360.0,107350.0,0.61041591]
[1748445375602,0.0922,107360.0,107350.0,0.61041591]
[1748445375790,0.0932,107360.0,107350.0,0.62062013]
[1748445375986,0.0932,107360.0,107350.0,0.62061075]
[1748445376193,0.0932,107360.0,107350.0,0.61041591]
[1748445376701,0.454,107360.0,107350.0,0.21137151]
[1748445376899,0.454,107360.0,107350.0,0.20117157]
[1748445377105,0.454,107360.0,107350.0,0.19681596]
[1748445377402,0.464,107360.0,107350.0,0.20129223]
[1748445377594,0.464,107360.0,107350.0,0.21149623]
[1748445377902,0.0932,107360.0,107350.0,0.21149623]
[1748445378105,0.0932,107360.0,107350.0,0.20129289]
[1748445378302,0.0932,107360.0,107350.0,0.24398483]
[1748445378606,0.0932,107360.0,107350.0,0.24398477]
[1748445378795,0.0932,107360.0,107350.0,0.27478473]
[1748445378997,0.0932,107360.0,107350.0,0.27478469]
[1748445379197,0.454,107360.0,107350.0,0.24398447]
[1748445379606,0.6402257,107360.0,107350.0,0.02524147]
[1748445379804,0.9368251,107360.0,107340.0,0.00013952]
[1748445380001,0.9368251,107360.0,107320.0,0.00139764]
[1748445380002,0.1862777,107330.0,107320.0,0.00139764]
[1748445380203,0.9078777,107330.0,107320.0,0.08139764]
[1748445380892,0.7216,107330.0,107320.0,0.26781274]
[1748445381091,0.9078777,107330.0,107320.0,0.26769274]
[1748445381295,0.9078777,107330.0,107320.0,0.26781274]
[1748445381999,0.9078777,107330.0,107320.0,0.27081274]
[1748445382910,0.9078777,107330.0,107320.0,0.26781274]
[1748445383205,0.9417777,107330.0,107320.0,0.26981274]
[1748445383398,0.9417777,107330.0,107320.0,0.27181274]
[1748445384202,0.9417777,107330.0,107320.0,0.08551764]
[1748445384507,1.32201548,107330.0,107320.0,0.00412]
[1748445384701,1.28495371,107330.0,107320.0,0.00412]
[1748445385210,1.8692462,107330.0,107320.0,0.00412]
[1748445385503,0.95551019,107330.0,107320.0,0.2002951]
[1748445385806,1.41215019,107330.0,107320.0,0.01412]
[1748445385998,1.41215019,107330.0,107320.0,0.1984151]
[1748445385999,0.76923249,107330.0,107320.0,0.1984151]
[1748445386192,0.86895249,107330.0,107320.0,0.4094151]
[1748445386394,0.87295249,107330.0,107320.0,0.4717151]
[1748445386705,1.57039441,107330.0,107320.0,0.22112]
[1748445387005,0.1862951,107320.0,107310.0,0.00051243]
[1748445387207,0.58431932,107320.0,107310.0,0.00051243]
[1748445388522,0.58531932,107320.0,107310.0,0.00051243]
[1748445388807,0.62245388,107320.0,107310.0,0.00051243]
[1748445389397,0.43615878,107320.0,107310.0,0.21682483]
[1748445389596,0.07535878,107320.0,107310.0,0.52222483]
[1748445389906,0.04012422,107320.0,107310.0,0.52222483]
[1748445390105,0.04012422,107320.0,107310.0,0.88302483]
[1748445390713,0.003,107320.0,107310.0,0.88302483]
[1748445391105,0.003,107320.0,107310.0,0.91811483]
[1748445391502,0.01373249,107330.0,107320.0,0.1862951]
[1748445391710,0.05713982,107340.0,107330.0,0.1862777]
[1748445391897,0.05713982,107340.0,107330.0,0.61585167]
[1748445392209,0.05713982,107340.0,107330.0,0.61585139]
[1748445392613,0.05713982,107340.0,107330.0,0.61585094]
[1748445392806,0.05713982,107340.0,107330.0,0.60129241]
[1748445393008,0.00013952,107340.0,107330.0,0.96673547]
[1748445393216,0.00013952,107340.0,107330.0,0.97664999]
[1748445393707,0.36293952,107340.0,107330.0,0.55335022]
[1748445393897,0.58642101,107340.0,107330.0,0.57181222]
[1748445394101,0.58642101,107340.0,107330.0,0.32562]
[1748445394298,0.58762101,107340.0,107330.0,0.53625286]
[1748445394509,0.58762101,107340.0,107330.0,0.53625362]
[1748445394510,0.58862101,107340.0,107330.0,0.53625362]
[1748445394711,0.58862101,107340.0,107330.0,0.53637522]
[1748445394917,0.58862101,107340.0,107330.0,0.53625642]
[1748445395118,0.58862101,107340.0,107330.0,0.52645778]
[1748445395308,0.58862101,107340.0,107330.0,0.5363764]
[1748445395510,0.58862101,107340.0,107330.0,0.1600987]
[1748445395812,0.58862101,107340.0,107330.0,0.3463764]
[1748445396003,0.58862101,107340.0,107330.0,0.33645777]
[1748445396207,0.58862101,107340.0,107330.0,0.33182162]
[1748445396403,0.58862101,107340.0,107330.0,0.16010396]
[1748445396711,0.58862101,107340.0,107330.0,0.34638472]
[1748445397106,0.58862101,107340.0,107330.0,0.34638591]
[1748445397300,0.55139992,107340.0,107330.0,0.3364578]
[1748445397509,0.55139992,107340.0,107330.0,0.34638585]
[1748445397898,0.55139992,107340.0,107330.0,0.16011186]
[1748445398805,0.58873905,107340.0,107330.0,0.16011528]
[1748445399311,0.58873905,107340.0,107330.0,0.15999553]
[1748445399706,0.58873905,107340.0,107330.0,0.1455575]
[1748445399922,0.58873905,107340.0,107330.0,0.34627592]
[1748445400216,1.04505905,107340.0,107330.0,0.3462756]
[1748445400412,1.04395905,107340.0,107330.0,0.3217774]
[1748445400718,1.04395905,107340.0,107330.0,0.34639756]
[1748445400917,1.04395905,107340.0,107330.0,0.3218974]
[1748445401109,0.58753905,107340.0,107330.0,0.34639708]
[1748445401416,1.04369296,107340.0,107330.0,0.32227031]
[1748445401715,1.04369296,107340.0,107330.0,0.16049203]
[1748445401906,1.04369296,107340.0,107330.0,0.34676943]